[Event "SixDays Budapest January-GM 2023"]
[Site "Budapest"]
[Date "2023.01.25"]
[Round "4.2"]
[White "Olsen, Filip Boe"]
[Black "Lucas, Arthur"]
[Result "1/2-1/2"]
[ECO "A80"]
[WhiteElo "2428"]
[BlackElo "2412"]
[Annotator "TA"]
[PlyCount "130"]
[EventDate "2023.01.23"]
[EventType "tourn"]
[EventCountry "HUN"]
[SourceTitle "playchess.com"]
[Source "ChessBase"]
[SourceQuality "1"]
[TimeControl "5400+30"]

{[%evp 10,130,19,9,11,9,0,6,11,14,21,0,0,-30,0,0,0,-2,0,-8,0,-53,-57,-79,-54,-52,-28,-74,-75,-87,-87,-83,-80,-88,-82,-92,-91,-113,-91,-116,-111,-120,-118,-125,-91,-119,-109,-119,-119,-107,0,-114,-110,-96,-96,-96,-96,-96,-96,-96,-96,-96,-67,-67,-67,-67,-67,-67,-67,-67,-67,-67,-67,-67,-67,-67,-67,-67,-67,-67,-67,-67,-67,-67,-67,-67,-67,-67,-67,-67,-67,-67,-67,-67,-67,-67,-67,-67,-67,-67,-67,-67,0,-67,0,-67,-45,-45,-45,-45,-45,-45,-45,-45,0,-45,0,-45,-45,-45,-45,-45,0]} 1. d4 {[%emt 0:00:05]} f5 {[%emt 0:02:55]} 2. Nf3 {[%emt 0:00:24]} Nf6 {[%emt 0:00:05]} 3. Bf4 {[%emt 0:00:44]} e6 {[%emt 0:00:15]} 4. e3 {[%emt 0:00:30]} b6 {[%emt 0:00:12]} 5. Nbd2 {[%emt 0:06:21]} Bb7 {[%emt 0:00:17]} 6. Bd3 {[%emt 0:01:06]} Bd6 {[%emt 0:01:34] A80: Dutch Defence: Unusual White second moves.} 7. c3 {[%emt 0:07:31]} Bxf4 {[%emt 0:03:41]} 8. exf4 {[%emt 0:00:03]} O-O {[%emt 0:00:09] The position is equal.} 9. O-O {[%emt 0:03:13]} c5 {[%emt 0:04:01]} 10. Re1 {[%emt 0:13:24] [#]} Qc7 $146 {[%emt 0:10:34]} ({Predecessor:} 10... Nc6 11. Nb3 Qc7 12. g3 Nd8 13. Bf1 Nf7 14. Bg2 Ne4 15. Nbd2 d5 16. Qe2 Rae8 {0-1 Harika,D (2358)-Prakash,G (2428) Hyderabad op 1st 2006 (4)}) 11. Ne5 {[%emt 0:08:59]} Nc6 {[%emt 0:05:31]} 12. dxc5 {[%emt 0:05:22]} bxc5 {[%emt 0:02:05]} 13. Ndc4 {[%emt 0:03:38]} d5 {[%emt 0:14:08]} 14. Nd2 {[%emt 0:03:51]} Nxe5 {[%emt 0:03:24]} 15. fxe5 {[%emt 0:07:13]} (15. Rxe5 $11 Bc8 16. h3) 15... Ne4 $15 {[%emt 0:01:24]} 16. f3 {[%emt 0:02:08]} Nxd2 {[%emt 0:21:26]} (16... c4 {feels hotter.} 17. Bxe4 dxe4 18. fxe4 Rad8) 17. Qxd2 {[%emt 0:02:00]} Qb6 {[%emt 0:00:04] [#] ...c4+ would be deadly.} 18. c4 {[%emt 0:05:39]} (18. Qf2 $11) 18... a5 $17 {[%emt 0:02:53][%cal Ba7a5,Ba5a4][%mdl 32]} 19. Qf2 {[%emt 0:02:18]} d4 {[%emt 0:00:30]} 20. Re2 {[%emt 0:03:07]} Bc6 {[%emt 0:02:39]} 21. h3 {[%emt 0:07:30]} Rab8 {[%emt 0:03:18]} 22. Kh2 {[%emt 0:03:11]} Qc7 {[%emt 0:00:27]} 23. Rc1 {[%emt 0:03:40]} a4 {[%emt 0:03:24]} 24. Kg1 {[%emt 0:00:18]} Rb4 {[%emt 0:01:51]} 25. Rcc2 {[%emt 0:00:37]} Qe7 {[%emt 0:02:34]} 26. Qg3 {[%emt 0:00:36]} Rfb8 {[%emt 0:01:03]} 27. Kf1 {[%emt 0:01:35]} R8b6 {[%emt 0:03:44]} 28. Qf4 {[%emt 0:00:44]} Qb7 {[%emt 0:01:54][%cal Rb4b2]} 29. Qd2 {[%emt 0:00:08]} Qe7 {[%emt 0:07:35]} ({Reject} 29... Bxf3 $6 30. gxf3 Qxf3+ 31. Kg1 $11) 30. Qf4 $1 {[%emt 0:00:08]} h6 {[%emt 0:01:20]} 31. Ke1 {[%emt 0:00:19]} Qg5 {[%emt 0:00:27]} 32. Qxg5 {[%emt 0:01:24]} hxg5 {[%emt 0:00:01]} 33. Kd1 {[%emt 0:01:54]} Kf7 {[%emt 0:00:15]} 34. Kc1 {[%emt 0:00:10]} Rb8 {[%emt 0:00:22]} 35. Re1 {[%emt 0:00:44]} a3 {[%emt 0:01:26][%cal Rb4b2]} 36. b3 {[%emt 0:00:47]} Rh8 {[%emt 0:00:10]} 37. Rf2 {[%emt 0:00:17]} Rh4 {[%emt 0:00:28]} 38. Kd2 {[%emt 0:00:28]} Ke7 {[%emt 0:00:42]} 39. Ref1 {[%emt 0:01:31]} Kd7 {[%emt 0:00:21]} 40. Be2 {[%emt 0:01:51]} Kc7 {[%emt 0:00:39]} 41. Bd3 {[%emt 0:00:21]} Kb6 {[%emt 0:00:39]} 42. Be2 {[%emt 0:01:13]} Ka5 {[%emt 0:00:13]} 43. Bd1 {[%emt 0:00:40]} Rb8 {[%emt 0:00:22]} 44. Re1 {[%emt 0:00:28]} Kb4 {[%emt 0:00:14]} 45. Ref1 {[%emt 0:00:25]} Rbh8 {[%emt 0:00:21]} 46. Re1 {[%emt 0:00:23]} Rf8 {[%emt 0:00:39]} 47. Ref1 {[%emt 0:00:14]} Be8 {[%emt 0:00:30]} 48. Re1 {[%emt 0:00:28]} Bg6 {[%emt 0:00:50]} 49. Be2 {[%emt 0:00:54]} Rhh8 {[%emt 0:00:47][%cal Og5g4]} 50. Bd3 {[%emt 0:00:21]} Be8 {[%emt 0:00:17]} 51. Ref1 {[%emt 0:00:10]} Rf7 {[%emt 0:00:34]} 52. Bc2 {[%emt 0:00:24]} Bc6 {[%emt 0:00:14]} 53. Bd3 {[%emt 0:00:04]} Rhf8 {[%emt 0:00:32]} 54. Kc2 {[%emt 0:00:39]} Be8 {[%emt 0:00:26]} 55. Kd2 {[%emt 0:00:10]} Rh8 {[%emt 0:00:59]} (55... Ra7 $15) 56. Kc2 {[%emt 0:00:43]} (56. Bc2 $1 $11) 56... Rhf8 {[%emt 0:00:04]} 57. Kd2 $1 {[%emt 0:00:05]} g6 {[%emt 0:00:56]} 58. Kc2 {[%emt 0:00:48]} Rh8 {[%emt 0:00:09]} 59. Kd2 {[%emt 0:00:06]} Rh4 {[%emt 0:00:11]} 60. Re1 {[%emt 0:00:30]} Bc6 {[%emt 0:00:20]} 61. Rg1 {[%emt 0:00:36]} Rf4 {[%emt 0:00:44] Strongly threatening ...g4.} 62. Rgf1 {[%emt 0:00:23] [#] And now g3 would win.} (62. Be2 $5 {[%cal Rg2g3]} Rh4 63. Rff1 $15) 62... Rh4 {[%emt 0:00:06]} 63. Rg1 {[%emt 0:00:05]} Rhh7 {[%emt 0:01:03][%cal Og5g4] Black is slightly better.} 64. Rgf1 {[%emt 0:00:13]} Be8 {[%emt 0:00:26]} 65. Kc2 {[%emt 0:00:15]} Bc6 {[%emt 0:00:54] Weighted Error Value: White=0.07 (flawless) /Black=0.10 (very precise)} 1/2-1/2

[Event "SixDays Budapest January-GM 2023"]
[Site "Budapest"]
[Date "2023.01.25"]
[Round "4.3"]
[White "Berczes, David"]
[Black "Kozak, Adam"]
[Result "1/2-1/2"]
[ECO "A46"]
[WhiteElo "2436"]
[BlackElo "2558"]
[Annotator "TA"]
[PlyCount "38"]
[EventDate "2023.01.23"]
[EventType "tourn"]
[EventCountry "HUN"]
[SourceTitle "playchess.com"]
[Source "ChessBase"]
[SourceQuality "1"]
[TimeControl "5400+30"]

{[%evp 9,38,32,32,29,34,26,50,45,43,31,49,37,58,35,40,10,31,11,2,15,6,-7,45,42,47,33,131,94,120,42,151]} 1. d4 {[%emt 0:10:44]} Nf6 {[%emt 0:00:28]} 2. Nf3 {[%emt 0:00:22]} d5 {[%emt 0:02:10]} 3. g3 {[%emt 0:03:57]} Nbd7 {[%emt 0:02:27]} 4. Bg2 {[%emt 0:01:13]} Nb6 {[%emt 0:00:12]} 5. O-O {[%emt 0:04:38]} c6 {[%emt 0:01:39]} 6. Nbd2 {[%emt 0:00:59][%cal Oc2c4] D02: 1 d4 d5 2 Nf3 sidelines, including 2...Nf6 3 g3 and 2...Nf6 3 Bf4.} Bf5 {[%emt 0:13:48]} 7. Nh4 {[%emt 0:03:55]} Bg4 {[%emt 0:00:21]} 8. h3 {[%emt 0:01:02]} Be6 {[%emt 0:03:05]} 9. Nhf3 {[%emt 0:02:09] [#]} g6 $146 {[%emt 0:04:30]} ({Predecessor:} 9... Bf5 10. Re1 e6 11. Ne5 Bd6 12. c4 Nbd7 13. g4 Bg6 14. Nxg6 hxg6 15. Qb3 Qc7 16. cxd5 cxd5 {½-½ Mamedov,R (2646)-Yuffa,D (2587) WchT Final 13th rapid 2022 (1.4)}) 10. Re1 {[%emt 0:17:58]} Bg7 {[%emt 0:08:58]} 11. c3 {[%emt 0:07:18]} O-O {[%emt 0:05:13]} 12. e4 {[%emt 0:11:24]} dxe4 {[%emt 0:02:19]} 13. Ng5 {[%emt 0:06:35] Black must now prevent Nxe6.} e3 {[%emt 0:01:50]} 14. Rxe3 {[%emt 0:05:48]} Bd5 {[%emt 0:00:13]} 15. Bf1 {[%emt 0:02:36]} h6 {[%emt 0:13:55]} ({Black should try} 15... Nfd7 $11) 16. Ngf3 $1 $14 {[%emt 0:00:17]} Rc8 {[%emt 0:07:54]} 17. c4 {[%emt 0:06:33]} Be6 {[%emt 0:07:58]} (17... Bxf3 $1 $14 18. Nxf3 c5) 18. Rxe6 {[%emt 0:01:45]} fxe6 {[%emt 0:00:15]} 19. Qe2 {[%emt 0:00:38]} ({White should play} 19. Qe1 $16) 19... Qd7 {[%emt 0:03:21] Weighted Error Value: White=0.16 (very precise) /Black=0.22 (precise)} (19... Kh7 $1 $14) 1/2-1/2

[Event "SixDays Budapest January-GM 2023"]
[Site "Budapest"]
[Date "2023.01.25"]
[Round "4.4"]
[White "Chen, Qi b"]
[Black "Ghazarian, Kirk"]
[Result "1/2-1/2"]
[ECO "B34"]
[WhiteElo "2484"]
[BlackElo "2466"]
[Annotator "TA"]
[PlyCount "36"]
[EventDate "2023.01.23"]
[EventType "tourn"]
[EventCountry "HUN"]
[SourceTitle "playchess.com"]
[Source "ChessBase"]
[SourceQuality "1"]
[TimeControl "5400+30"]

{[%evp 19,21,0,6,8]} 1. e4 {[%emt 0:00:03]} c5 {[%emt 0:00:10]} 2. Nf3 {[%emt 0:00:13][%cal Bg1f3,Bf3d4,Bd4b5][%mdl 32]} Nc6 {[%emt 0:00:09]} 3. d4 {[%emt 0:00:53]} cxd4 {[%emt 0:00:08]} 4. Nxd4 {[%emt 0:00:04]} Nf6 {[%emt 0:01:05]} 5. Nc3 {[%emt 0:00:06]} e5 {[%emt 0:01:38]} 6. Ndb5 {[%emt 0:01:00]} d6 {[%emt 0:00:13]} 7. Nd5 {[%emt 0:05:04]} Nxd5 {[%emt 0:00:08]} 8. exd5 {[%emt 0:00:03]} Nb8 {[%emt 0:00:08]} 9. a4 {[%emt 0:00:38]} Be7 {[%emt 0:02:52]} 10. Be2 {[%emt 0:00:10]} O-O {[%emt 0:00:38]} 11. O-O {[%emt 0:03:52] [#] An uneventful encounter.  B33: Sicilian: Pelikan and Sveshnikov Variations.} {Predecessor:} f5 $146 12. b4 a6 13. Na3 f4 14. a5 Bf5 15. c4 Nd7 16. Nb1 Bf6 17. Bg4 Bxg4 18. Qxg4 e4 {0-1 Abdusattorov,N (2688)-Gukesh,D (2684) Biel 55th 2022 (1)} 1/2-1/2

[Event "SixDays Budapest January-GM 2023"]
[Site "Budapest"]
[Date "2023.01.25"]
[Round "4.5"]
[White "Nagy, Gabor"]
[Black "Hacker, Jonas"]
[Result "1/2-1/2"]
[ECO "A45"]
[WhiteElo "2499"]
[BlackElo "2446"]
[Annotator "TA"]
[PlyCount "51"]
[EventDate "2023.01.23"]
[EventType "tourn"]
[EventCountry "HUN"]
[SourceTitle "playchess.com"]
[Source "ChessBase"]
[SourceQuality "1"]
[TimeControl "5400+30"]

{[%evp 9,51,0,-2,3,-10,-8,23,12,14,-16,-3,-17,-17,-42,-27,-32,0,0,0,0,0,-14,-8,-15,-13,-39,-31,-43,-20,-24,-5,-35,-35,-33,-6,-30,-27,-31,0,-35,0,0,0,0]} 1. d4 {[%emt 0:00:06]} Nf6 {[%emt 0:00:12]} 2. Nc3 {[%emt 0:00:14]} d5 {[%emt 0:00:18]} 3. Bf4 {[%emt 0:00:11]} c5 {[%emt 0:00:31]} 4. e3 {[%emt 0:01:19]} cxd4 {[%emt 0:00:13]} 5. exd4 {[%emt 0:00:10]} a6 {[%emt 0:00:19]} 6. Nf3 {[%emt 0:00:41] B13: Caro-Kann: Exchange Variation and Panov-Botvinnik Attack.} Nc6 {[%emt 0:01:42]} 7. Ne5 {[%emt 0:00:31]} Qb6 {[%emt 0:04:20]} 8. Nxc6 {[%emt 0:08:24] White has an edge.} Qxc6 {[%emt 0:01:57] [#]} 9. Qd3 $146 {[%emt 0:02:52]} ({Predecessor:} 9. Bd3 Bg4 10. Qd2 e6 11. a3 Bh5 12. O-O Bg6 13. Be5 Bd6 14. Bxd6 Qxd6 15. Rae1 {½-½ Boros,D (2429)-Vazquez,G (2527) Titled Tuesday intern op 14th April blitz 2020 (5)}) 9... Bg4 {[%emt 0:03:49][%cal Bc8g4,Bg4h5,Bh5g6][%mdl 32]} 10. f3 {[%emt 0:07:02]} Bh5 {[%emt 0:00:52]} 11. O-O-O {[%emt 0:00:43]} Rc8 {[%emt 0:03:29]} 12. Qe3 {[%emt 0:05:56]} b5 {[%emt 0:09:42] [#] ...b4 is the strong threat.} 13. Bd3 {[%emt 0:01:06]} Bg6 {[%emt 0:04:43] ...b4 would be deadly.} 14. Kb1 {[%emt 0:01:07]} e6 {[%emt 0:02:01]} 15. Ne2 {[%emt 0:01:08]} Be7 {[%emt 0:03:31]} 16. h4 {[%emt 0:02:52]} Bxd3 {[%emt 0:03:20]} 17. cxd3 {[%emt 0:00:38]} O-O {[%emt 0:01:12]} 18. Rc1 Qd7 {[%emt 0:02:10]} 19. g4 {[%emt 0:00:56]} Rxc1+ {[%emt 0:07:23]} 20. Rxc1 {[%emt 0:00:13]} Rc8 {[%emt 0:00:06] Prevents Rc7} 21. h5 {[%emt 0:01:00]} Rxc1+ {[%emt 0:06:00]} 22. Qxc1 {[%emt 0:00:48]} h6 {[%emt 0:00:56]} 23. Qc2 {[%emt 0:01:21]} Bd6 {[%emt 0:08:11]} 24. Qc1 {[%emt 0:02:11]} Bxf4 {[%emt 0:02:46]} 25. Qxf4 {[%emt 0:01:16]} Qd8 {[%emt 0:06:39]} 26. a3 {[%emt 0:07:29] Weighted Error Value: White=0.09 (flawless) /Black=0.11 (very precise)} 1/2-1/2

[Event "SixDays Budapest January-GM 2023"]
[Site "Budapest"]
[Date "2023.01.25"]
[Round "5.1"]
[White "Hacker, Jonas"]
[Black "Pajeken, Jakob Leon"]
[Result "1/2-1/2"]
[ECO "C54"]
[WhiteElo "2446"]
[BlackElo "2449"]
[Annotator "TA"]
[PlyCount "196"]
[EventDate "2023.01.23"]
[EventType "tourn"]
[EventCountry "HUN"]
[SourceTitle "playchess.com"]
[Source "ChessBase"]
[SourceQuality "1"]
[TimeControl "5400+30"]

{[%evp 17,196,13,5,7,9,0,14,0,48,0,0,-19,-18,-100,-88,-135,-122,-258,-258,-250,-216,-221,-214,-214,-214,-222,-218,-218,-212,-221,-211,-245,-235,-240,-227,-219,-229,-468,-186,-187,-185,-190,-189,-201,-187,-218,-225,-205,-150,-150,-129,-134,-129,-156,-129,-129,-129,-129,-129,-129,-129,-129,-129,-129,-129,-129,-129,-129,-129,-129,0,-129,0,-129,-129,-129,-129,-129,-129,-129,-129,-129,-114,-129,-101,-101,-94,-94,-49,-49,0,-101,-101,-101,-101,-101,-101,-101,-101,-101,-101,-101,-101,-101,-101,-114,-114,-114,-114,-114,-114,-114,-114,-114,-114,-114,-114,-114,-114,-211,-157,-211,-93,-93,-93,-97,-93,-93,-88,-100,-83,-93,-83,-100,-93,-157,-114,-114,-114,-114,-114,-114,-114,-114,-114,-114,-114,-114,0,-114,-114,-114,-114,-114,-114,-114,-114,-114,0,-114,-114,-114,-66,-114,-66,-114,-66,-114,-114,-114,0,-114,-114,-114,-112,-114,-31,-114,-31,-31,-31]} 1. e4 {[%emt 0:00:21]} e5 {[%emt 0:00:10]} 2. Nf3 {[%emt 0:00:27]} Nc6 {[%emt 0:00:05]} 3. Bc4 {[%emt 0:00:08]} Bc5 {[%emt 0:00:14]} 4. c3 {[%emt 0:00:10]} Nf6 {[%emt 0:00:04]} 5. d4 {[%emt 0:00:07]} exd4 {[%emt 0:00:05]} 6. e5 {[%emt 0:00:10]} d5 {[%emt 0:00:05]} 7. Bb5 {[%emt 0:00:13]} Ne4 {[%emt 0:00:05]} 8. cxd4 {[%emt 0:00:06]} Bb6 {[%emt 0:00:03]} 9. Nc3 {[%emt 0:00:09]} O-O {[%emt 0:00:04]} 10. Be3 {[%emt 0:00:19] C54: Giuoco Piano: 4 c3 Nf6, main lines with 5 d4 and 5 d3.} Bg4 {[%emt 0:00:10]} 11. h3 {[%emt 0:00:19]} Bh5 {[%emt 0:00:04]} 12. Qc2 {[%emt 0:00:45] The position is equal.} f5 {[%emt 0:01:36] [#]} (12... Nxc3 $11 13. bxc3 f6 14. Bxc6 Bxf3 15. gxf3 bxc6) 13. Nxd5 $1 {[%emt 0:14:22]} Ba5+ $1 $11 {[%emt 0:00:05]} (13... Qxd5 $2 14. Bc4 Bf7 15. Bxd5 $18) 14. Kf1 {[%emt 0:08:56]} (14. Nc3 Nxc3 15. bxc3 Bxf3 16. gxf3 Nxd4 $17) 14... Bxf3 {[%emt 0:00:04]} (14... Qxd5 $2 15. Bc4 Bf7 16. Bxd5 $18) 15. gxf3 {[%emt 0:18:11]} (15. Bxc6 $11 {keeps the balance.} Nxf2 16. Kxf2 (16. Bxb7 Nxh1 17. gxf3 Rb8 $14) 16... Bxd5 17. Bxd5+ Qxd5 18. Qb3) 15... Nxd4 $17 {[%emt 0:00:04] [#]} (15... Qxd5 $2 16. Bc4 $18 (16. fxe4 $2 Qxb5+ 17. Qe2 Qxe2+ 18. Kxe2 f4 $19) (16. fxe4 $2 Qxb5+ 17. Qe2 Qxe2+ 18. Kxe2 f4 $19)) 16. Qc4 $146 {[%emt 0:09:45]} (16. Bxd4 $2 Nd2+ 17. Ke2 (17. Ke1 $2 Nxf3+ 18. Kf1 Qxd5 $19) 17... Qxd5 $19) (16. Qd3 $142 Nxf3 17. e6) ({Predecessor:} 16. Bxd4 Nd2+ 17. Qxd2 Bxd2 18. Bc4 Kh8 19. e6 Re8 20. Rd1 Bh6 21. Ne3 Bxe3 22. fxe3 Qh4 23. Ke2 c5 {0-1 Nguyen,T (2577)-Lazavik,D (2440) Juniors Speed Qual Europe blitz 2021 (1.4)}) 16... Nxf3 {[%emt 0:05:59] Excellent horsemanship.} 17. Nf6+ {[%emt 0:03:06]} (17. Nxc7+ Rf7 18. Ne6 Qh4 $19) (17. Rd1 $17 Kh8 18. e6) 17... Kh8 $19 {[%emt 0:00:02]} 18. Nxe4 {[%emt 0:00:09]} fxe4 {[%emt 0:00:35]} 19. Qxe4 {[%emt 0:01:28]} Nd2+ {[%emt 0:10:16]} 20. Bxd2 {[%emt 0:00:02]} Qxd2 {[%emt 0:00:09][%csl Gf8][%cal Rd2f2]} 21. Rh2 {[%emt 0:05:08] White is weak on the dark squares} Bb6 {[%emt 0:02:43][%cal Rf8f2]} (21... Qxb2 $2 {too greedy.} 22. Rb1 Qxa2 23. Bd3) 22. Qe2 {[%emt 0:01:05]} Qf4 {[%emt 0:02:48]} 23. Rg2 {[%emt 0:04:21]} Qh4 {[%emt 0:01:33]} 24. Bd7 {[%emt 0:02:14]} Rf4 $1 {[%emt 0:05:38] White must now prevent ...Raf8.} 25. Kg1 {[%emt 0:06:54]} Raf8 {[%emt 0:01:49][%cal Rf4f2]} 26. Rf1 {[%emt 0:02:11]} Re4 $1 {[%emt 0:00:55]} 27. Qd3 {[%emt 0:03:54]} (27. Qc2) 27... Rxe5 $2 {[%emt 0:00:48]} (27... Rd4 28. Qa3 Rdf4) 28. Bg4 {[%emt 0:00:44] [#]} Re1 $3 {[%emt 0:05:31][%mdl 576] Decoy} 29. Rxe1 {[%emt 0:07:17]} Bxf2+ {[%emt 0:00:45][%cal Bb6f2,Bf2e1,Be1b4,Bb4d6][%mdl 32]} 30. Kh1 {[%emt 0:01:18] Rf1 would be deadly.} Bxe1 {[%emt 0:00:08]} 31. Re2 {[%emt 0:01:42]} Bb4 {[%emt 0:02:22] Repels Qa3} ({Don't go for} 31... Rf1+ $2 32. Kg2 Rf8 33. Qe3) 32. Qb5 {[%emt 0:03:45]} Bd6 {[%emt 0:03:34]} 33. Re8 {[%emt 0:00:41]} Qf2 {[%emt 0:00:50][%csl Gd6][%cal Rf2h2]} 34. Rxf8+ {[%emt 0:00:49]} Qxf8 $17 {[%emt 0:01:05][%mdl 4096] Endgame KQB-KQB} 35. Kg2 {[%emt 0:02:19]} b6 {[%emt 0:02:04]} 36. Qf5 {[%emt 0:00:41]} Qxf5 {[%emt 0:00:24]} 37. Bxf5 {[%emt 0:00:01] KB-KB} g6 {[%emt 0:00:06]} 38. Bc8 {[%emt 0:01:05]} Kg7 {[%emt 0:01:02]} 39. Kf3 {[%emt 0:00:02]} Kf6 {[%emt 0:00:17]} 40. Ke4 {[%emt 0:00:25]} a5 {[%emt 0:00:21]} 41. a4 {[%emt 0:00:27]} Bh2 {[%emt 0:01:28]} 42. b3 {[%emt 0:00:25]} Kg5 {[%emt 0:01:27]} 43. Be6 {[%emt 0:00:43]} Kf6 {[%emt 0:00:09]} 44. Bc8 {[%emt 0:00:45]} Kg5 {[%emt 0:02:10]} 45. Be6 $1 {[%emt 0:00:02]} Bg1 {[%emt 0:00:21]} 46. Bd7 {[%emt 0:00:16]} Bf2 {[%emt 0:00:27]} 47. Be6 {[%emt 0:00:04]} Be1 {[%emt 0:00:15]} 48. Bd7 {[%emt 0:00:09]} Bd2 {[%emt 0:00:20]} 49. Be6 {[%emt 0:00:07]} Kf6 {[%emt 0:00:32]} 50. Bc8 {[%emt 0:00:09]} h5 {[%emt 0:01:27][%cal Bh7h5,Bh5h4][%mdl 32]} 51. Bd7 {[%emt 0:00:29]} Ke7 {[%emt 0:00:05]} 52. Bb5 {[%emt 0:00:27]} Ke6 {[%emt 0:02:10]} 53. Be8 {[%emt 0:00:26]} Kf6 {[%emt 0:00:05]} (53... Be1 $15) 54. Bd7 $1 {[%emt 0:00:35]} g5 {[%emt 0:01:27]} 55. Be8 {[%emt 0:04:47] [#]} h4 $1 {[%emt 0:00:06]} 56. Bd7 {[%emt 0:00:33]} Ke7 {[%emt 0:00:11]} 57. Bg4 {[%emt 0:00:31]} Kd6 {[%emt 0:00:36]} 58. Kd4 {[%emt 0:00:05]} Bb4 {[%emt 0:00:24]} 59. Bf5 {[%emt 0:00:14]} Bc5+ {[%emt 0:00:07]} 60. Kd3 {[%emt 0:00:20]} Kd5 {[%emt 0:00:23]} 61. Bg4 {[%emt 0:00:27]} Bg1 {[%emt 0:00:13]} 62. Kc3 {[%emt 0:00:31]} Kc5 {[%emt 0:00:13]} 63. Bd7 {[%emt 0:00:18]} Bd4+ {[%emt 0:00:06]} 64. Kc2 {[%emt 0:00:11]} Kb4 {[%emt 0:00:08]} 65. Be6 {[%emt 0:01:40]} Bf6 {[%emt 0:00:05]} 66. Bd7 {[%emt 0:00:13]} Bg7 {[%emt 0:01:09]} 67. Bg4 {[%emt 0:00:55]} c6 {[%emt 0:02:03]} 68. Be2 {[%emt 0:00:49]} (68. Bd7 $17 {keeps fighting.}) 68... Bf6 {[%emt 0:01:39]} 69. Bf3 {[%emt 0:00:36]} (69. Bg4 $17) 69... Kc5 {[%emt 0:01:08]} (69... c5 $19 70. Be2 Bg7) 70. Kd3 {[%emt 0:00:11]} Bd8 {[%emt 0:00:14]} 71. Bg2 {[%emt 0:01:09]} Be7 {[%emt 0:00:04]} 72. Bf3 {[%emt 0:00:03]} Bf6 {[%emt 0:00:50]} 73. Bg2 {[%emt 0:00:10]} Bh8 {[%emt 0:03:22]} 74. Bf3 {[%emt 0:00:01]} Bg7 {[%emt 0:01:19]} 75. Bg2 {[%emt 0:00:06]} b5 {[%emt 0:01:18]} 76. axb5 {[%emt 0:00:22]} (76. Bf3 $142) 76... Kxb5 {[%emt 0:00:04]} 77. Bf3 {[%emt 0:00:21]} Bf6 {[%emt 0:00:20]} 78. Bg4 {[%emt 0:00:20]} Kc5 {[%emt 0:00:22]} 79. Kc2 {[%emt 0:01:33]} Kb4 {[%emt 0:00:22]} 80. Bd7 {[%emt 0:00:24]} c5 {[%emt 0:00:06]} 81. Be6 {[%emt 0:00:20]} Bd4 {[%emt 0:00:05]} 82. Bd7 {[%emt 0:00:40]} Bf6 {[%emt 0:00:15]} 83. Be6 {[%emt 0:00:01]} Be5 {[%emt 0:00:06]} 84. Bd7 {[%emt 0:00:06]} Bd4 {[%emt 0:00:58]} 85. Be6 {[%emt 0:00:05]} Bh8 {[%emt 0:01:33]} 86. Bd7 {[%emt 0:00:11]} Ba1 {[%emt 0:00:14]} 87. Be6 {[%emt 0:00:08]} Be5 {[%emt 0:00:37]} 88. Bd7 $1 {[%emt 0:00:09]} Ka3 {[%emt 0:04:11]} 89. Be6 {[%emt 0:00:28]} Bd4 {[%emt 0:00:31]} (89... Bg7 $17 90. Bg4 Kb4) 90. Bd7 {[%emt 0:00:29]} (90. Kd3 $15) 90... Be3 {[%emt 0:00:10]} ({Black should play} 90... Bg7 $17 91. Be6 Kb4) 91. Be6 {[%emt 0:00:09] [#]} (91. Kc3 $15) 91... Bg1 {[%emt 0:00:05]} (91... Kb4 $1 $17 92. Kd3 Bc1) 92. Bd7 {[%emt 0:00:09]} (92. Kc3 $15) 92... Kb4 {[%emt 0:00:07]} 93. Be6 {[%emt 0:00:08]} Bd4 {[%emt 0:00:07]} 94. Bd7 $1 {[%emt 0:00:42]} c4 {[%emt 0:00:00]} 95. bxc4 {[%emt 0:00:29]} a4 {[%emt 0:00:00] ...a3 is the strong threat.} 96. c5 {[%emt 0:01:12]} a3 {[%emt 0:00:00]} (96... Bxc5 $17 97. Be6 Bd6) 97. Kb1 {[%emt 0:00:13]} (97. c6 $15 Be5 98. Kb1) 97... Kb3 {[%emt 0:00:00]} (97... Kxc5 $17 98. Ka2 Kb4) 98. Be6+ $15 {[%emt 0:00:02]} Kc3 {[%emt 0:00:00] Weighted Error Value: White=0.16 (very precise) /Black=0.16 (very precise)} 1/2-1/2